{"text_format":"3","workbook":"xlsx","n_sheets":1,"sheets":["PRICING SCHEDULE"],"not_rendered":{"images":1,"defined_names":2},"read":"whole","date_system":"1900"}

{"sheet":"PRICING SCHEDULE","index":0,"n_rows":40,"n_cols":10,"rows_kept":40,"merged":[[11,2,11,3],[12,2,12,3],[12,5,14,5],[13,2,13,3],[14,2,14,3],[16,4,16,6],[36,1,39,1],[36,2,36,3],[36,4,36,5],[37,2,37,3],[38,2,38,3],[38,4,38,5],[39,2,39,3],[39,4,39,5]]}
[null,"SUPPLY CHAIN MANAGEMENT"]
[null,"Pricing schedule"]
["RFB No","RFB 2866/2024"]
["RFN Title","Supply, Installation and Configuration of structured Network Switches and WI-FI Infrastructure for Department of Water and Sanitation Head Office (Phase 2) in Pretoria."]
["Bidder Name "]
[]
["1. INSTRUCTION FOR COMPLETING THE PRICING SCHEDULE"]
["(a)  Bidder must complete/enter YELLOW cells only"]
["(b)  Unit and Line prices must be VAT EXCLUSIVE and in South African Rand (ZAR) currency."]
["(c) The price must include all cost to deliver the goods or render the service, including all applicable taxes, duty fees, logistics/delivery, storage, labour, overtime and subsistance and travel"]
["(d)  Prices that are dependent on Rate of Exchange (ROE) must use ROE indicated below, then enter in Column \"Forex %\" the percentage of the price that is ROE dependent (0% means the price is not ROE dependent)"]
[null,"Foreign currency","South African Rand (ZAR) exchange rate "]
[null,"1 US Dollar",18.56,null,null,"Mark with an X, which ROE is applicable"]
[null,"1 Euro",19.94]
[null,"1 Pound (UK)",23.31]
[]
[{"$nulls":4},"Year 1 "]
["Item No","Goods/Service description","Unit of measure","Forex %","Qty ","Unit Price \n(Excl VAT)","Line Price Y1","Forex Price portion","BRAND / MODEL (if applicable)","Price clarification comment"]
[null,"* Access Switches, Core Switch and Wi-Fi Solution must be able to seamlessly integrate and operate with each other.\n* The solution to be able to accommodate a VOIP."]
["1.","Supply of equipment"]
["1.1","Supply, install and configure Aruba 6200F 24G Class4 PoE 4SFP+ 370W Switch","Each",{"v":0,"d":"0%"},53,0,{"$f":"E21*F21","v":0},{"$f":"D21*G21","v":0}]
["1.2","Supply, install and configure Aruba 6200F 48G Class4 PoE 4SFP+ 370W Switch","Each",{"v":0,"d":"0%"},4,0,{"$f":"E22*F22","v":0},{"$f":"D22*G22","v":0}]
["1.3","Aruba 10G SFP+ LC SR 300m MMF Transceiver","Each",{"v":0,"d":"0%"},70,0,0,0]
["1.4","Aruba 10G SFP","Each",{"v":0,"d":"0%"},76,0,0,0]
["1.5","Aruba 10G SFP","Each",{"v":0,"d":"0%"},26,0,0,0]
["1.6","Supply, Install and configure Aruba AP-515 (RW) Unified AP","Each",{"v":0,"d":"0%"},15,0,0,0]
["1.7","AP-MNT-D AP mount bracket individual D: solid surface","Each",{"v":0,"d":"0%"},15,0,0,0]
["1.8","Aruba 3Y FC NBD Exch AP-515 SVC  [for Q9H62A]","Each",{"v":0,"d":"0%"},15,0,0,0]
[2,"NETWORK: GENERAL SERVICES"]
["2.1","Install, Configuration of all Switches and WIFI Equipment","Sum",{"v":0,"d":"0%"},1,0,0,0]
["2.2","Testing (Test certificate results)","Sum",{"v":0,"d":"0%"},1,0,0,0]
[null,"TOTAL BID PRICE  (EXCL VAT)",{"$nulls":4},{"$f":"SUBTOTAL(9,G19:G31)","v":0},{"$f":"SUBTOTAL(9,H19:H31)","v":0}]
[null,"VAT (@15%)",{"$nulls":4},{"$f":"G32*0.15","v":0}]
[null,"TOTAL  BID PRICE (INCL VAT)",{"$nulls":4},{"$f":"G32+G33","v":0}]
[]
[]
[null,"I, the bidder, confirm that the price(s) and rate(s) quoted cover all the goods and/or works specified in the bidding documents; that the price(s) or rate(s) cover all my obligations and I accept that any mistakes regarding price(s), rate(s) or calculations will be at my own risk.\n[Note: First convert to PDF, then add signature]"]
[null,null,"Name",null,"Capacity"]
[]
[null,null,"Signature (above)",null,"Date"]